Cogmind - Beta 16 @@@ ROGUE MODE // 2025.11.12 @ 20:23:31 Player: Nori Result: Destroyed by as-45677 with Assembled Heavy Rifle Performance ------------- Evolutions (0) 0 Regions Visited (4) 800 Robots Destroyed (31) 155 Value Destroyed (718) 718 Prototype IDs (25) 500 Alien Tech Used (0) 0 Bonus (300) 300 TOTAL SCORE: 2473 Bonus ------- Aligned with FarCom 300 Cogmind --------- Core Integrity 0/250 Matter 179/300 Energy 100/100 System Corruption 1% Temperature Cool (0) Movement Treading (320) Ox2 Location -9/Mines Parts ------- > --- POWER (1) -------- (None) > --- PROPULSION (2) --- Light Treads > --- UTILITY (2) ------ Large Storage Unit Large Storage Unit > --- WEAPON (2) ------- Light Cannon > --- INVENTORY (15) --- Light Ion Engine Flight Unit Flight Unit Flight Unit Flight Unit Improved Heat Sink Humpback AWS/Gauss Grenade Launcher Heavy Explosive Trap Heavy Explosive Trap Peak State ------------ > --- POWER ------------ Light Nuclear Core > --- PROPULSION ------- Light Treads Light Treads > --- UTILITY ---------- Large Storage Unit Large Storage Unit > --- WEAPON ----------- Light Cannon > --- INVENTORY -------- Light Ion Engine Flight Unit Flight Unit Flight Unit Flight Unit Improved Heat Sink Humpback AWS/Gauss Light Cannon Grenade Launcher Heavy Explosive Trap Heavy Explosive Trap [Rating: 11] Favorites ----------- Power Light Nuclear Core Engine Light Ion Engine Power Core Light Nuclear Core Propulsion Light Treads Treads Light Treads Utility Large Storage Unit Storage Large Storage Unit Weapon Assault Rifle Energy Gun EM Pulse Gun Ballistic Gun Assault Rifle Ballistic Cannon Light Cannon Build | -11 -10 -10 -10 -9 ------- Run | Yrd Mat Min Exi Min Slots Evolved . | . . . . . Power . | . . . . . Propulsion . | . . . . . Utility . | . . . . . Weapon . | . . . . . Parts Attached 17 | 7 6 4 . . Power 4 | 1 2 1 . . Engine 3 | 1 2 . . . Core 1 | . . 1 . . Reactor . | . . . . . Propulsion 4 | 2 1 1 . . Treads 4 | 2 1 1 . . Leg . | . . . . . Wheel . | . . . . . Hover . | . . . . . Flight . | . . . . . Utility 4 | 1 2 1 . . Device . | . . . . . Storage 4 | 1 2 1 . . Processor . | . . . . . Hackware . | . . . . . Protection . | . . . . . Artifact . | . . . . . Weapon 5 | 3 1 1 . . Energy Gun 1 | 1 . . . . Energy Cannon . | . . . . . Ballistic Gun 2 | 2 . . . . Ballistic Cannon 2 | . 1 1 . . Launcher . | . . . . . Special Weapon . | . . . . . Impact Weapon . | . . . . . Slashing Weapon . | . . . . . Piercing Weapon . | . . . . . Special Melee Weapon . | . . . . . Unidentified Prototypes . | . . . . . Parts Lost 7 | . 3 1 . 3 Power 2 | . 1 . . 1 Propulsion 2 | . 1 . . 1 Utility . | . . . . . Weapon 3 | . 1 1 . 1 Highest Loss Streak 3 | . 1 1 . 3 To Critical Strikes 1 | . . . . 1 Average Backups 8 | 1 6 9 9 10 Power . | . . . 1 1 Propulsion 3 | . 3 4 4 4 Utility . | . . 1 1 2 Weapon 2 | . 1 3 3 3 Tool/Special . | . . . . . Unused Backups 10 | . . 1 . 9 Power 1 | . . . . 1 Propulsion 5 | . . 1 . 4 Utility 2 | . . . . 2 Weapon 2 | . . . . 2 Tool/Special . | . . . . . Average Slot Usage (%) 93 | . 98 99 71 79 Engine 6 | . 13 . . . Core 7 | . . 13 14 14 Treads 27 | . 27 28 28 26 Storage 27 | . 27 28 28 28 Ballistic Gun 14 | . 23 11 . . Ballistic Cannon 7 | . 4 16 . 9 Peak Build Rating 11 | 6 8 10 10 11 Average Rating 8 | 4 7 9 8 10 On Entrance 6 | . 6 8 10 10 Avg Prop Armor Cover (%) . | . . . . . Naked Turns . | . . . . . Heaviest Build 51 | 12 48 51 45 51 Greatest Support 40 | 40 40 40 40 40 Greatest Overweight (x) 1 | . 1 1 1 1 Average Overweight (x) . | . . 1 1 1 Largest Inventory Capacity 15 | 8 15 15 15 15 Average Capacity 14 | 7 14 15 15 15 Most Carried 15 | 3 10 13 15 15 Average Carried 9 | 1 6 10 12 14 Final Capacity 15 | 8 15 15 15 15 Final Carried 15 | 2 8 12 15 13 Class Distribution -------------------- 100% | Mutant Dominant Class ---------------- Mutant | -10/Materials Mutant | -10/Mines Mutant | -10/Exiles Mutant | -9/Mines Resources | -11 -10 -10 -10 -9 ----------- Run | Yrd Mat Min Exi Min Matter Collected 943 | 279 461 203 . . Remotely . | . . . . . Salvage Created 1173 | 65 932 176 . . Parts 70 | 3 52 15 . . Haulers Intercepted 2 | . 2 . . . Recyclers Shooed . | . . . . . Parts Field Recycled . | . . . . . Retrieved Matter . | . . . . . Parts Self-Destructed . | . . . . . Prevented . | . . . . . Parts Restored . | . . . . . Kills | -11 -10 -10 -10 -9 ------- Run | Yrd Mat Min Exi Min Combat Hostiles Destroyed 21 | . 13 7 . 1 Guns 12 | . 10 2 . . Cannons 9 | . 3 5 . 1 Classes Destroyed 8 | 1 6 . . 1 Worker 1 | . 1 . . . Hauler 2 | . 2 . . . Recycler 5 | 1 4 . . . Operator 1 | . 1 . . . Watcher 2 | . 2 . . . Swarmer 5 | . 2 3 . . Grunt 15 | . 11 4 . . Assembled 1 | . . . . 1 Best Kill Streak 4 | 1 4 4 . 1 Combat Bots Only 4 | . 3 4 . 1 Max Kills in Single Turn 1 | 1 1 1 . 1 Gunslinging . | . . . . . Exploded . | . . . . . Melee . | . . . . . Uniques/NPCs Destroyed . | . . . . . Combat | -11 -10 -10 -10 -9 -------- Run | Yrd Mat Min Exi Min Hostile Shots Fired 139 | . 80 45 . 14 Missed 42 | . 24 15 . 3 Hits 97 | . 56 30 . 11 Melee 7 | . . . . 7 Projectile 90 | . 56 30 . 4 Critical Strikes 3 | . 1 . . 2 Damage Taken 1272 | 32 647 322 . 271 Core 250 | . 148 60 . 42 Absorbed by Shields . | . . . . . Core Remaining (%) 100 | 100 . . . . Volleys Fired 103 | 3 72 21 . 7 Largest 2 | 2 2 2 . 2 Hottest 60 | 60 50 60 . 60 Shots Fired 194 | 6 143 35 . 10 Gun 134 | 6 117 11 . . Cannon 60 | . 26 24 . 10 Launcher . | . . . . . Special . | . . . . . Kinetic 191 | 3 143 35 . 10 Thermal . | . . . . . Explosive . | . . . . . Electromagnetic 3 | 3 . . . . Robot Hit Streak 8 | 4 8 7 . 3 Robot Miss Streak 7 | 1 5 7 . 2 Penetration Max . | . . . . . Secondary Targets 2 | . 2 . . . Max Gunslinging Chain 1 | . 1 . . . Shots Hit Robots 121 | 5 91 19 . 6 Core Hits 51 | 2 38 10 . 1 Critical Kills 1 | . 1 . . . Critical Parts Destroyed . | . . . . . Critical Strikes 2 | . 1 . . 1 Destroy 1 | . 1 . . . Blast 1 | . . . . 1 Melee Attacks . | . . . . . Impact . | . . . . . Slashing . | . . . . . Piercing . | . . . . . Sneak Attacks . | . . . . . Combat Hostiles . | . . . . . Follow-up Attacks . | . . . . . Damage Inflicted 1818 | 91 1268 336 . 123 Guns 1135 | 65 971 99 . . Cannons 657 | . 297 237 . 123 Explosions 26 | 26 . . . . Melee . | . . . . . Ramming . | . . . . . Kinetic 1749 | 22 1268 336 . 123 Thermal 26 | 26 . . . . Explosive . | . . . . . Electromagnetic 43 | 43 . . . . Impact . | . . . . . Slashing . | . . . . . Piercing . | . . . . . Highest Corruption 1 | . 1 1 1 1 Average Corruption 1 | . 1 1 1 1 Corruption Purged . | . . . . . Corruption Blocked . | . . . . . Effects 21 | . 7 5 7 2 Matter Fused 7 | . 2 1 4 . Heat Flow Errors 1 | . . . . 1 Energy Discharges 3 | . . 3 . . Parts Rejected 1 | . 1 . . . Data Loss (minor) 3 | . 1 . 2 . Data Loss (major) 1 | . . . 1 . Alerts 3 | . 2 1 . . Weapon Failures 2 | . 1 . . 1 Overload Shots . | . . . . . Overflow Damage 9 | . . . . 9 Projectiles 9 | . . . . 9 Explosions . | . . . . . Melee . | . . . . . Knockbacks 5 | . . 5 . . Impact . | . . . . . Kinetic 5 | . . 5 . . Secondary . | . . . . . Self-Inflicted Damage 56 | 32 . 24 . . Shots 2 | 1 . 1 . . Rammed . | . . . . . Targets Rammed . | . . . . . Kicked . | . . . . . Crushed . | . . . . . Highest Temperature 148 | 12 21 21 . 148 Average Temperature 14 | 12 4 9 . 38 Received Heat Transfer 417 | . 333 84 . . Siege Activations . | . . . . . Martial Activations . | . . . . . Shielding Activations . | . . . . . Robots Disrupted . | . . . . . Combat Hostiles . | . . . . . Robots Corrupted . | . . . . . Combat Hostiles . | . . . . . Parts Fried . | . . . . . Impact Corruptions . | . . . . . Robots Melted . | . . . . . Combat Hostiles . | . . . . . Parts Melted . | . . . . . Heat Transferred 50 | 50 . . . . Parts Sabotaged . | . . . . . Parts Stolen . | . . . . . Parts Stripped . | . . . . . Power Chain Reactions 1 | 1 . . . . Alert | -11 -10 -10 -10 -9 ------- Run | Yrd Mat Min Exi Min Maximum Alert Level . | . . . . . Low Security (%) 100 | 100 100 100 . 100 Level 1 . | . . . . . Level 2 . | . . . . . Level 3 . | . . . . . Level 4 . | . . . . . Level 5 . | . . . . . High Security . | . . . . . Max Security . | . . . . . Peak Influence 124 | 5 98 124 . . Initial 7 | . . 7 . . Average 24 | . 29 21 . . Influence Increases 636 | 5 434 197 . . Destroy 0b10 Robot/C 400 | . 260 140 . . Destroy 0b10 Robot/NC 55 | 5 50 . . . Destroy Leader 108 | . 78 30 . . Successful Hack 14 | . 14 . . . Disable Machine 15 | . . 15 . . Destroy Structure 14 | . 2 12 . . Lose Combat Pursuer 30 | . 30 . . . Influence Decreases 636 | 5 414 217 . . Entered New Map 13 | . . 13 . . Time Decay 603 | 5 404 194 . . Lost Part 20 | . 10 10 . . Squads Dispatched 3 | . 3 . . . Investigation 2 | . 2 . . . Extermination . | . . . . . Reinforcement 1 | . 1 . . . Assault . | . . . . . Garrison . | . . . . . Intercept . | . . . . . Searches Triggered . | . . . . . Construction Impeded . | . . . . . Haulers Reinforced . | . . . . . Active Scanning Responses . | . . . . . Cargo Convoy Interrupts . | . . . . . Stealth | -11 -10 -10 -10 -9 --------- Run | Yrd Mat Min Exi Min Distress Signals 1 | . 1 . . . Communications Jammed . | . . . . . Distress Signals . | . . . . . Times Spotted 38 | . 28 7 . 3 Peak Tracking Total 4 | . 4 4 . 3 Tactical Retreats 2 | . 2 . . . Traps | -11 -10 -10 -10 -9 ------- Run | Yrd Mat Min Exi Min Traps Triggered 3 | . 3 . . . Indirectly . | . . . . . Trap Hack Attempts . | . . . . . Triggered . | . . . . . Disarmed . | . . . . . Reprogrammed . | . . . . . Reused . | . . . . . Traps Extracted . | . . . . . Installed . | . . . . . Triggered . | . . . . . Most Traps Carried 3 | . . 3 3 2 Machines | -11 -10 -10 -10 -9 ---------- Run | Yrd Mat Min Exi Min Machines Disabled 1 | . . 1 . . Max in Single Turn 1 | . . 1 . . Machines Repaired . | . . . . . Machines Dismantled . | . . . . . Machines Sabotaged . | . . . . . Overloaded Fab Kills . | . . . . . Hacking | -11 -10 -10 -10 -9 --------- Run | Yrd Mat Min Exi Min Machines Accessed 9 | . 4 . 5 . Terminals 4 | . 4 . . . Fabricators . | . . . . . Repair Stations . | . . . . . Recycling Units . | . . . . . Scanalyzers . | . . . . . Garrison Access . | . . . . . Total Hacks 61 | . 11 . 50 . Successful 54 | . 4 . 50 . Failed 7 | . 7 . . . Catastrophic 2 | . 2 . . . Database Lockouts . | . . . . . Manual 6 | . 5 . 1 . Terminals 11 | . 11 . . . Fabricators . | . . . . . Repair Stations . | . . . . . Recycling Units . | . . . . . Scanalyzers . | . . . . . Garrison Access . | . . . . . Terminal Hacks 52 | . 2 . 50 . Record 49 | . . . 49 . Prototype ID Bank 1 | . 1 . . . Branch Access Points 1 | . 1 . . . Proto ID Catalog 1 | . . . 1 . Fabricator Hacks . | . . . . . Repair Station Hacks . | . . . . . Recycling Unit Hacks . | . . . . . Scanalyzer . | . . . . . Garrison Access Hacks . | . . . . . Unauthorized Hacks 2 | . 2 . . . Terminals 2 | . 2 . . . Operators 2 | . 2 . . . Fabricators . | . . . . . Repair Stations . | . . . . . Recycling Units . | . . . . . Scanalyzers . | . . . . . Garrison Access . | . . . . . Data Cores Recovered . | . . . . . Used . | . . . . . Hacking Detections 3 | . 3 . . . Full Trace Events 1 | . 1 . . . Feedback Events . | . . . . . Feedback Blocked . | . . . . . Robot Schematics Acquired . | . . . . . Robots Built . | . . . . . Authchips . | . . . . . Time . | . . . . . Total Robot Build Rating . | . . . . . Part Schematics Acquired . | . . . . . Parts Built . | . . . . . Authchips . | . . . . . Time . | . . . . . Total Part Build Rating . | . . . . . Part Studies Acquired . | . . . . . Parts Repaired . | . . . . . Time . | . . . . . Parts Recycled . | . . . . . Recycled Matter . | . . . . . Retrieved Matter . | . . . . . Retrieved Components . | . . . . . Parts Scanalyzed . | . . . . . Part Schematics Acquired . | . . . . . Parts Damaged . | . . . . . Bothacking | -11 -10 -10 -10 -9 ------------ Run | Yrd Mat Min Exi Min Used RIF Installer . | . . . . . Robots Hacked . | . . . . . Non-combat . | . . . . . Combat . | . . . . . Robot Hacks Applied . | . . . . . Relay Couplers Released . | . . . . . Fabnet Peak Effective % . | . . . . . Robots Rewired . | . . . . . Allies Hacked . | . . . . . Hacks Repelled . | . . . . . Allies | -11 -10 -10 -10 -9 -------- Run | Yrd Mat Min Exi Min Total Allies . | . . . . . Largest Group . | . . . . . Highest-Rated Group . | . . . . . Highest-Rated Ally . | . . . . . Total Orders . | . . . . . Ally Attacks . | . . . . . Total Damage . | . . . . . Kills . | . . . . . Allies Corrupted . | . . . . . Allies Melted . | . . . . . Intel | -11 -10 -10 -10 -9 ------- Run | Yrd Mat Min Exi Min Active Infowar (turns) . | . . . . . Robot Analysis Total . | . . . . . Derelict Logs Recovered 1 | . . 1 . . Drone Launches . | . . . . . Drone Recoveries . | . . . . . Exploration | -11 -10 -10 -10 -9 ------------- Run | Yrd Mat Min Exi Min Turns Passed 3435 | 117 1561 1042 636 79 Spaces Moved 1308 | 63 553 404 264 24 Core 8 | 8 . . . . Treads 1300 | 55 553 404 264 24 Legs . | . . . . . Wheels . | . . . . . Hover . | . . . . . Flight . | . . . . . Fastest Speed 50 | 50 160 240 240 240 Average Speed 234 | 146 237 240 240 240 Slowest Speed 240 | 160 240 240 240 240 Overloaded Moves . | . . . . . Propulsion Burnouts . | . . . . . Robots Hopped . | . . . . . Potential Cave-ins . | . . . . . Cave-ins Triggered . | . . . . . Exploration Rate (%) 49 | 5 79 83 61 18 Regions Visited 4 Branch Regions 3 Pre-discovered Areas 1 | . . . 1 . Known Exits Taken 1 | . 1 . . . Unknown Exits Taken 3 | 1 . 1 1 . Scrap Searched 1 | . . 1 . . Spaces Dug . | . . . . . Terrain Destroyed 17 | 5 . 12 . . Melee . | . . . . . Projectile . | . . . . . AOE 17 | 5 . 12 . . Terrain Rammed . | . . . . . Walls Destroyed . | . . . . . Machines Disabled . | . . . . . Actions | -11 -10 -10 -10 -9 --------- Run | Yrd Mat Min Exi Min Total 1484 | 82 655 442 270 35 Wait 13 | . 11 . . 2 Move 1304 | 62 552 403 263 24 Hop . | . . . . . Pick Up 32 | 9 12 9 2 . Fast Attach . | . . . . . Attach 14 | 6 5 1 . 2 Detach 2 | . . . 2 . Swap 7 | 1 2 4 . . Drop 9 | 1 1 4 3 . Fire 103 | 3 72 21 . 7 Melee . | . . . . . Ram . | . . . . . Kick . | . . . . . Crush . | . . . . . Escape Stasis . | . . . . . Rewire . | . . . . . Trap . | . . . . . Miscellaneous . | . . . . . Route ------- -11/Scrapyard -10/Materials (discovered 3 exits: [*Mat] / *Min x2) -10/Mines (discovered 3 exits: [*Mat] / *Exi / [*Sub]) -10/Exiles -9/Mines History --------- Turn | Location | Event 6 | -11/Scrapyard | Discovered new exit (range 15) 118 | -11/Scrapyard | Entered Materials 234 | -10/Materials | Identified exit to Mines 301 | -10/Materials | Build established: Mutant 721 | -10/Materials | Discovered new exit (range 5) 1168 | -10/Materials | Core integrity fell below 50% 1679 | -10/Materials | Entered Mines 1868 | -10/Mines | Found DCF Scrap (15 items) 2071 | -10/Mines | Discovered new exit (range 8) 2251 | -10/Mines | Found a hidden stash of uninstalled traps 2329 | -10/Mines | Discovered new exit (range 4) 2456 | -10/Mines | Learned location of 2 exits from Materials 2540 | -10/Mines | Core integrity fell below 20% 2709 | -10/Mines | Deemed a non-threat by the Exiles lab entrance 2711 | -10/Mines | Discovered new exit (range 5) 2721 | -10/Mines | Entered Exiles 2786 | -10/Exiles | Met 8R-AWN 2827 | -10/Exiles | Met EX-HEX 2899 | -10/Exiles | Met EX-BIN 2937 | -10/Exiles | Aligned with FarCom system 2939 | -10/Exiles | Given EX-Vault access code 3028 | -10/Exiles | Opened EX-Vault 3086 | -10/Exiles | Found AWS/Gauss 3126 | -10/Exiles | Exiles lab attacked by MAIN.C 3214 | -10/Exiles | Learned location of Zion (-7) 3331 | -10/Exiles | Discovered new exit (range 12) 3357 | -10/Exiles | Left Exiles lab with AWS/Gauss 3357 | -10/Exiles | Entered Mines 3387 | -9/Mines | Assembled infested the area 3436 | -9/Mines | Destroyed by as-45677 with Assembled Heavy Rifle Last Messages --------------- 03331_ EXIT=FOUND LOCATION=UNKNOWN GOAL=ESCAPE 03357_ Receiving FarCom transmissions... 03359_ DK-RAY: "That was close. Too bad in all the rush we got split up from the others." 03374_ DK-RAY: "Oh no, it's like what happened to the Exiles when they were wandering homeless, only there's no Warlord to save us!" 03387_ ALERT: Infestation in the mines, dispatching Demolisher response squad. 03403_ System corrupted: Heat flow error (+166). 03422_ Lgt. Treads destroyed. 03425_ System corrupted: Lgt. Cannon jammed. 03428_ Destroyed Asb. Hover Unit. 03428_ as-95051 suffers critical hit (Blast). 03428_ as-95051 destroyed. 03430_ Critical hit (Destroy). 03430_ Lgt. Cannon destroyed. 03432_ Lgt. Nuclear Core destroyed. Map ----- +----------------------------------------------------+ | ?# #????????????????? | | ?# #????????????????? | | ?# #????????????????? | | ?# #????????????????? | | ?# #????????????????? | | ?# #????????????????? | | ?# #????????????????? | | ?# #????????????????? | | ?# #????????????????? | | ?# #????????????????? | | ?# #????? ??????????? | | ?# #???? #?????????? | | ?### ######## #####??# #?????????? | | ???#??????## #?????# #?????????? | | ??????????# ##???# #?????????? | | ??????????# ##?# #?????????? | | ??????????## ## #??????????? | | ???????????## #????????????? | | ????????????## ##????????????? | | ?????????????# ##?????????????? | | ???????####### ######??????????????? | | ???# #???????????????????? | | ???????####### #???????????????????? | | ??????????#### #???????????????????? | | ??????????# #???????????????????? | | ??????????# @ % #???????????????????? | | ??????????#a ####???????????????????? | | ??????????#%a#??????????????????????? | | ??????????# #??????????????????????? | | ??????????# #??????????????????????? | | ??????????# #??????????????????????? | | ??????????# #??????????????????????? | | ?????????? #??????????????????????? | | ?????????? ??????????????????????? | | ????????? ??????????????????????? | | ?????????# ??????????????????????? | | ?????????## ??????????????????????? | | ??????????## ??????????????????????? | | ????????????##??????????????????????? | | ????????????????????????????????????? | | ????????????????????????????????????? | | ????????????????????????????????????? | | ????????????????????????????????????? | | ????????????????????????????????????? | | ????????????????????????????????????? | | ????????????????????????????????????? | | ????????????????????????????????????? | | ????????????????????????????????????? | | ????????????????????????????????????? | | ????????????????????????????????????? | +----------------------------------------------------+ Best States ------------- Heat Dissipation 25 Energy Generation 14 Energy Capacity 160 Matter Stores 300 Matter Capacity 300 Sight Range 16 Terrain Scan Density 10 Evasion (%) 40 Recoil Reduction 2 Item Schematics ----------------- None Robot Schematics ------------------ None Fabricated ------------ Nothing Repaired ---------- Nothing Studied --------- None Alien Tech Used ----------------- None Achievements -------------- None Challenges ------------ None Game ------ Seed DisassembledCoreMagmablaster Manual? 0 Play Time 00:21:49 Cumulative 128.1 hours Start 2025.11.12 @ 20:01:57 End 2025.11.12 @ 20:23:31 Sessions 1 Manual Loads 0 Difficulty Rogue Special Mode None Game No. 80 Rogue 80 Adventurer 0 Explorer 0 Win Type - Total 2 Types 0/0/0/2/0/0/0/0/0/0 Lore% 23 Gallery% 45 Achievement% 26 Wizard Run 0 Options --------- Layout 1 ASCII 0 Keyboard 0 Movement Numpad Keybinds 0 Fullscreen 1 Font 24/Smallcaps Map View 50x40 Zoom Use 0% Tactical HUD 1 Map Filters NONE Filters NONE Steam 1 RUN: 45cb0b7b-fbdf-486f-81f4-6ae9dc75ef28